fUST/lending_fUST_20251228
["ID","MTS","AMOUNT","RATE_DAILY","PERIOD"]
[399945646,1766919044463,-542.41,0.000235,2]
[399945647,1766919044597,-812438.18309283,0.000235,2]
[399945649,1766919046281,-40960.25467568,0.000235,2]
[399945650,1766919046295,-4313.84843441,0.000235,2]
[399945651,1766919046309,-4486.15156559,0.000235,2]
[399945652,1766919046334,-1438.72,0.000235,2]
[399945653,1766919046346,-20627.32266041,0.000235,2]
[399945654,1766919047109,-2206.19098277,0.000235,2]
[399945655,1766919047121,-2436.94948074,0.000235,2]
[399945656,1766919047134,-452.60481759,0.000235,2]
[399945657,1766919311108,280.659272,0.00025844,120]
[399945659,1766919572267,10000.0,0.00030137,120]
[399945660,1766919583454,669.0,0.00030137,120]
[399945661,1766919729013,150.0,9.134e-05,2]
[399945662,1766919729525,150.0,9.569e-05,2]
[399945663,1766919729935,150.0,0.00010004,2]
[399945664,1766919730358,182.15,0.00010439,2]
[399945665,1766919730832,227.68,0.00010873,2]
[399945666,1766919731329,273.22,0.00011308,2]
[399945667,1766919731754,318.76,0.00011743,2]
[399945668,1766919732203,364.29,0.00012178,2]
[399945669,1766919732616,409.83,0.00012613,2]
[399945670,1766919733045,455.37,0.00013048,2]
[399945671,1766919740599,1518.64866416,0.00030137,120]
[399945672,1766919803789,150.0,6.005e-05,2]
[399945673,1766919804182,150.0,6.291e-05,2]
[399945674,1766919804583,150.0,6.576e-05,2]
[399945675,1766919804994,150.0,6.862e-05,2]
[399945676,1766919805471,150.0,7.148e-05,2]
[399945677,1766920154131,-500.0,0.00013273,2]
[399945678,1766920154152,-150.0,0.00013273,2]
[399945679,1766920154173,-608.0,0.00013273,2]
[399945680,1766920154198,-1085.37279852,0.00013821,2]
[399945681,1766920154218,-177.0,0.00015273,2]
[399945682,1766920154244,-1041.66666667,0.00017226,2]
[399945683,1766920154264,-204.0,0.00017273,2]
[399945695,1766920238459,-749.38652695,0.00019064,2]
[399945696,1766920238469,-705.0,0.00019064,2]
[399945697,1766920238478,-250.0,0.00019152,2]
[399945698,1766920238488,-461.67526834,0.00019152,2]
[399945699,1766920238498,-168.3888056,0.00019152,2]
[399945700,1766920238507,-151.0,0.00019152,2]
[399945701,1766920238516,-500.0,0.00019152,2]
[399945702,1766920238525,-250.0,0.00019152,2]
[399945703,1766920238535,-151.0,0.00019152,2]
[399945704,1766920238544,-151.0,0.00019152,2]
[399945705,1766920238553,-261.59463505,0.00019152,2]
[399945706,1766920238563,-500.0,0.00019152,2]
[399945707,1766920238572,-251.236961,0.00019152,2]
[399945709,1766920238581,-1460.90017273,0.00019152,2]
[399945711,1766920238591,-151.0,0.00019152,2]
[399945712,1766920238599,-2230.315306,0.00019152,2]
[399945713,1766920238608,-188.53276405,0.0001916,2]
[399945714,1766920238619,-311.46723595,0.0001916,2]
[399945715,1766920238628,-500.0,0.0001916,2]
[399945716,1766920238637,-257.92332562,0.0001916,2]
[399945717,1766920238648,-242.07667438,0.0001916,2]
[399945718,1766920238657,-156.32691414,0.0001916,2]
[399945719,1766920238668,-343.67308586,0.0001916,2]
[399945720,1766920238677,-215.9205425,0.0001916,2]
[399945767,1766920240559,-284.0794575,0.0001916,2]
[399945770,1766920240569,-500.0,0.0001916,2]
[399945773,1766920240578,-500.0,0.0001916,2]
[399945776,1766920240587,-500.0,0.0001916,2]
[399945779,1766920240596,-500.0,0.0001916,2]
[399945782,1766920240604,-500.0,0.0001916,2]
[399945785,1766920240613,-500.0,0.0001916,2]
[399945788,1766920240622,-333.3753483,0.0001916,2]
[399945791,1766920240632,-500.0,0.0001916,2]
[399945794,1766920240641,-500.0,0.0001916,2]
[399945797,1766920240650,-500.0,0.0001916,2]
[399945800,1766920240659,-500.0,0.0001916,2]
[399945803,1766920240668,-500.0,0.0001916,2]
[399945806,1766920240677,-226.37608218,0.0001916,2]
[399945809,1766920240686,-500.0,0.0001916,2]
[399945812,1766920240694,-500.0,0.0001916,2]
[399945815,1766920240703,-500.0,0.0001916,2]
[399945818,1766920240712,-500.0,0.0001916,2]
[399945821,1766920240721,-294.92467084,0.0001916,2]
[399945824,1766920240730,-261.19488182,0.0001916,2]
[399945827,1766920240739,-500.0,0.0001916,2]
[399945830,1766920240749,-500.0,0.0001916,2]
[399945833,1766920240758,-500.0,0.0001916,2]
[399945835,1766920240767,-500.0,0.0001916,2]
[399945839,1766920240776,-361.81318312,0.0001916,2]
[399945841,1766920240785,-301.91094549,0.0001916,2]
[399945982,1766920244632,-198.08905451,0.0001916,2]
[399945983,1766920244643,-92.78269103,0.0001916,2]
[399945984,1766920244655,-407.21730897,0.0001916,2]
[399945985,1766920244667,-500.0,0.0001916,2]
[399945986,1766920244677,-92.78269103,0.00019161,2]
[399945987,1766920244690,-407.21730897,0.00019161,2]
[399945988,1766920244867,-500.0,0.00019161,2]
[399945989,1766920244880,-411.65197649,0.00019161,2]
[399945990,1766920244890,-500.0,0.00019161,2]
[399945991,1766920244899,-481.95693454,0.00019161,2]
[399945992,1766920245010,-18.04306546,0.00019161,2]
[399945993,1766920245021,-439.70695187,0.00019161,2]
[399945994,1766920245031,-500.0,0.00019161,2]
[399945995,1766920245041,-500.0,0.00019161,2]
[399945996,1766920245052,-493.68563457,0.00019161,2]
[399945997,1766920245062,-500.0,0.00019161,2]
[399945998,1766920245073,-500.0,0.00019161,2]
[399945999,1766920245082,-500.0,0.00019161,2]
[399946000,1766920245092,-500.0,0.00019161,2]
[399946001,1766920245102,-500.0,0.00019161,2]
[399946002,1766920245111,-500.0,0.00019161,2]
[399946003,1766920245121,-500.0,0.00019161,2]
[399946004,1766920245131,-300.0,0.00019161,2]
[399946005,1766920245140,-1109.0,0.00019161,2]
[399946006,1766920245156,-1200.0,0.00019162,2]
[399946007,1766920245166,-5000.0,0.00019178,2]
[399946008,1766920245175,-231.0,0.00019273,2]
[399946009,1766920245184,-609.9380411,0.00019327,2]
[399946010,1766920245193,-2466.641229,0.00019395,2]
[399946012,1766920246470,-1502.95,0.00019395,2]
[399946013,1766920246575,-1030.408771,0.00019395,2]
[399946014,1766920246585,-1817.10278713,0.00020499,2]
[399946035,1766920669109,446.4,0.00030136,120]
[399946038,1766920990341,1270.16,0.00030134,120]
[399946039,1766920990594,1270.16,0.00030134,120]
[399946040,1766920990854,1270.16,0.00030134,120]
[399946041,1766920991111,1270.16,0.00030134,120]
[399946042,1766920991342,1270.16,0.00030134,120]
[399946043,1766920991608,1270.16,0.00030134,120]
[399946044,1766920991940,1270.16,0.00030134,120]
[399946045,1766920992305,1270.16,0.00030134,120]
[399946046,1766920992536,1270.16,0.00030134,120]
[399946047,1766920992808,1270.16,0.00030134,120]
[399946048,1766920993049,1270.16,0.00030134,120]
[399946049,1766920993273,1270.16,0.00030134,120]
[399946050,1766920993508,1270.16,0.00030134,120]
[399946051,1766920993754,1270.16,0.00030134,120]
[399946052,1766920993992,1270.16,0.00030134,120]
[399946053,1766920994368,1270.16,0.00030134,120]
[399946054,1766920994499,1270.16,0.00030134,120]
[399946055,1766920994733,1270.16,0.00030134,120]
[399946056,1766920994974,1270.16,0.00030134,120]
[399946057,1766920995203,1270.16,0.00030134,120]
[399946058,1766920995438,1270.16,0.00030134,120]
[399946059,1766920995701,1270.16,0.00030134,120]
[399946060,1766920995935,1270.16,0.00030134,120]
[399946061,1766920996198,1270.3956305,0.00030134,120]
[399946064,1766921206121,-294.65904675,0.00018711,2]
[399946066,1766921380565,354.0,0.00030137,120]
[399946103,1766921432490,-212.23187685,0.00018811,3]
[399946105,1766921432500,-212.23187684,0.00018812,3]
[399946107,1766921432509,-75.05880141,0.00018812,3]
[399946199,1766921438654,-137.17307543,0.00018812,3]
[399946200,1766921438664,-701.0,0.00018861,2]
[399946201,1766921438674,-150.0,0.00018861,2]
[399946202,1766921438683,-1041.66666667,0.00018879,2]
[399946203,1766921438693,-237.3413944,0.00019279,2]
[399946204,1766921438702,-2050.02747866,0.00020266,2]
[399946205,1766921438712,-877.02009882,0.00020754,2]
[399946206,1766921438722,-300.0,0.00020852,2]
[399946207,1766921438735,-300.0,0.00020852,2]
[399946208,1766921438744,-300.0,0.00020852,2]
[399946209,1766921438754,-300.0,0.00020852,2]
[399946210,1766921438763,-1200.0,0.00020852,2]
[399946211,1766921438775,-8412.37887607,0.00020853,2]
[399946212,1766921438787,-3199.83174743,0.00020853,2]
[399946213,1766921438800,-442.67030023,0.00020853,2]
[399946214,1766921438810,-597.64307208,0.00020853,2]
[399946215,1766921438822,-1733.72171815,0.00020853,2]
[399946368,1766921444805,-500.0,0.00020852,2]
[399946369,1766921444815,-288.15638355,0.00020852,2]
[399946370,1766921444825,-500.0,0.00020852,2]
[399946371,1766921444837,-500.0,0.00020852,2]
[399946372,1766921444846,-157.79486631,0.00020852,2]
[399946373,1766921444856,-500.0,0.00020852,2]
[399946374,1766921444865,-500.0,0.00020852,2]
[399946375,1766921444874,-500.0,0.00020852,2]
[399946376,1766921444883,-500.0,0.00020852,2]
[399946377,1766921444893,-500.0,0.00020852,2]
[399946378,1766921444904,-500.0,0.00020852,2]
[399946379,1766921444913,-500.0,0.00020852,2]
[399946380,1766921444923,-462.42509906,0.00020852,2]
[399946381,1766921444935,-37.57490094,0.00020852,2]
[399946382,1766921444944,-500.0,0.00020852,2]
[399946383,1766921444953,-500.0,0.00020852,2]
[399946384,1766921444962,-423.90878228,0.00020852,2]
[399946385,1766921444972,-468.51078498,0.00020852,2]
[399946386,1766921444983,-31.48921502,0.00020852,2]
[399946387,1766921444992,-268.51078498,0.00020852,2]
[399946388,1766921445088,-32.73989408,0.00020852,2]
[399946391,1766921446621,-198.74932094,0.00020852,2]
[399946392,1766921446631,-500.0,0.00020852,2]
[399946393,1766921446640,-500.0,0.00020852,2]
[399946394,1766921446648,-234.72091311,0.00020852,2]
[399946395,1766921446657,-518.89116769,0.00020852,2]
[399946396,1766921446666,-373.53479812,0.00020852,2]
[399946397,1766921446676,-500.0,0.00020852,2]
[399946398,1766921446684,-500.0,0.00020852,2]
[399946399,1766921446693,-500.0,0.00020852,2]
[399946400,1766921446702,-500.0,0.00020852,2]
[399946401,1766921446711,-500.0,0.00020852,2]
[399946402,1766921446720,-500.0,0.00020852,2]
[399946403,1766921446733,-500.0,0.00020852,2]
[399946404,1766921446742,-565.34452943,0.00020852,2]
[399946405,1766921446751,-226.20449463,0.00020852,2]
[399946406,1766921446760,-500.0,0.00020852,2]
[399946407,1766921446770,-500.0,0.00020852,2]
[399946408,1766921446779,-500.0,0.00020852,2]
[399946409,1766921446787,-500.0,0.00020852,2]
[399946410,1766921446797,-500.0,0.00020852,2]
[399946411,1766921446806,-516.85008993,0.00020852,2]
[399946412,1766921446815,-500.0,0.00020852,2]
[399946413,1766921446825,-8129.74953492,0.00020853,2]
[399946414,1766921446834,-1200.0,0.00020853,2]
[399946415,1766921446843,-500.0,0.00020855,2]
[399946416,1766921446853,-177.0,0.00020861,2]
[399946417,1766921446862,-150.0,0.00021,2]
[399946418,1766921446871,-1242.6023579,0.00021387,2]
[399946419,1766921446880,-599.3589821,0.00021388,2]
[399946420,1766921446889,-45.06230318,0.00021388,2]
[399946421,1766921446900,-258.16544362,0.00021388,2]
[399946422,1766921446909,-599.3589821,0.00021388,2]
[399946423,1766921446918,-599.3589821,0.00021388,2]
[399946424,1766921446927,-303.2277468,0.00021388,2]
[399946425,1766921446936,-599.3589821,0.00021388,2]
[399946426,1766921446945,-303.2277468,0.00021388,2]
[399946427,1766921446954,-599.3589821,0.00021388,2]
[399946428,1766921446963,-303.2277468,0.00021388,2]
[399946429,1766921446972,-599.3589821,0.00021388,2]
[399946430,1766921446981,-524.62843905,0.00021388,2]
[399946431,1766921602548,150.0,8.452e-05,2]
[399946432,1766921603015,150.0,9.221e-05,2]
[399946433,1766921603406,150.0,9.989e-05,2]
[399946434,1766921603854,150.0,0.00010757,2]
[399946435,1766921604399,150.0,0.00011526,2]
[399946436,1766921605287,150.0,0.00012294,2]
[399946437,1766921605720,150.0,0.00013063,2]
[399946439,1766921630437,1659.02,0.00030137,120]
[399946440,1766921672542,150.0,8.183e-05,2]
[399946441,1766921673054,150.0,8.927e-05,2]
[399946442,1766921673422,150.0,9.671e-05,2]
[399946443,1766921673879,150.0,0.00010414,2]
[399946444,1766921674275,150.0,0.00011158,2]
[399946445,1766921674851,150.0,0.00011902,2]
[399946446,1766921675179,153.56,0.00012646,2]
[399946447,1766921742338,150.0,8.41e-05,2]
[399946448,1766921742731,150.0,9.174e-05,2]
[399946449,1766921743139,150.0,9.939e-05,2]
[399946450,1766921743577,150.0,0.00010703,2]
[399946451,1766921744026,150.0,0.00011468,2]
[399946452,1766921744446,150.0,0.00012232,2]
[399946453,1766921744871,150.0,0.00012997,2]
[399946454,1766921766655,340.353327,0.00030137,120]
[399946455,1766921811577,150.0,8.389e-05,2]
[399946456,1766921811970,150.0,9.151e-05,2]
[399946457,1766921812371,150.0,9.914e-05,2]
[399946458,1766921812825,150.0,0.00010677,2]
[399946459,1766921813231,150.0,0.00011439,2]
[399946460,1766921820255,-5000.0,0.00013562,2]
[399946461,1766921820282,-435.78346,0.00013699,2]
[399946462,1766921820306,-150.0,0.00013765,2]
[399946463,1766921868668,-177.0,0.00015765,2]
[399946464,1766921877866,150.0,8.476e-05,2]
[399946465,1766921878289,150.0,9.247e-05,2]
[399946466,1766921878711,150.0,0.00010017,2]
[399946467,1766921879235,150.0,0.00010788,2]
[399946468,1766921879721,150.0,0.00011558,2]
[399946469,1766921962080,6700.0,0.00030137,120]
[399946470,1766922024411,40192.7920874,0.00030137,120]
[399946471,1766922080656,-1041.66666667,0.00017235,2]
[399946472,1766922080676,-533.33333333,0.00017235,2]
[399946473,1766922151557,151.0,0.000301,120]
[399946474,1766922157263,151.0,0.000301,120]
[399946475,1766922158189,151.0,0.000301,120]
[399946476,1766922161844,151.0,0.000301,120]
[399946477,1766922162544,151.0,0.000301,120]
[399946478,1766922166984,151.0,0.000301,120]
[399946479,1766922170453,151.0,0.000301,120]
[399946480,1766922171058,151.0,0.000301,120]
[399946481,1766922254908,151.0,0.000301,120]
[399946482,1766922266324,151.0,0.000301,120]
[399946483,1766922278815,151.0,0.000301,120]
[399946484,1766922279881,151.0,0.000301,120]
[399946485,1766922308742,166.17884942,0.000301,120]
[399946504,1766922631603,-151.0,0.000172,2]
[399946506,1766922631613,-151.0,0.000172,2]
[399946508,1766922631623,-572.63818407,0.000172,2]
[399946512,1766922631654,-99.36181593,0.000172,2]
[399946513,1766922631664,-150.0,0.00017209,2]
[399946514,1766922631674,-155.63286594,0.00019209,2]
[399946515,1766922631685,-21.36713406,0.00019209,2]
[399946516,1766922631696,-151.0,0.000198,3]
[399946517,1766922631705,-151.0,0.000198,3]
[399946519,1766922631715,-503.4978113,0.00020023,2]
[399946539,1766922637874,-538.16885537,0.00020023,2]
[399946540,1766922637886,-300.0,0.00020179,2]
[399946541,1766922637896,-300.0,0.00020179,2]
[399946542,1766922637907,-838.60339209,0.00020179,2]
[399946543,1766922637926,-361.39660791,0.00020179,2]
[399946544,1766922637936,-500.0,0.00020179,2]
[399946545,1766922637946,-500.0,0.00020179,2]
[399946546,1766922637956,-500.0,0.00020179,2]
[399946547,1766922637965,-500.0,0.00020179,2]
[399946548,1766922637976,-500.0,0.00020179,2]
[399946549,1766922637986,-500.0,0.00020179,2]
[399946550,1766922637996,-373.60511304,0.00020179,2]
[399946551,1766922638006,-500.0,0.00020179,2]
[399946552,1766922638015,-359.78590407,0.00020179,2]
[399946574,1766922639922,-140.21409593,0.00020179,2]
[399946576,1766922639932,-271.19126803,0.00020179,2]
[399946578,1766922639942,-468.59877432,0.00020179,2]
[399946580,1766922639953,-31.40122568,0.00020179,2]
[399946582,1766922639962,-500.0,0.00020179,2]
[399946584,1766922639973,-368.59877432,0.00020179,2]
[399946586,1766922639984,-131.40122568,0.00020179,2]
[399946588,1766922639993,-641.11634012,0.00020179,2]
[399946590,1766922640003,-359.12005264,0.00020179,2]
[399946600,1766922640086,-100.12728132,0.00020179,2]
[399946710,1766922644205,-40.75266604,0.00020179,2]
[399946711,1766922644214,-500.0,0.00020179,2]
[399946712,1766922644225,-522.95744357,0.00020179,2]
[399946713,1766922644236,-500.0,0.00020179,2]
[399946714,1766922644245,-518.92477669,0.00020179,2]
[399946715,1766922644255,-500.0,0.00020179,2]
[399946716,1766922644267,-500.0,0.00020179,2]
[399946717,1766922644277,-431.0,0.0002018,2]
[399946718,1766922644288,-46.41656339,0.0002018,2]
[399946719,1766922644302,-2414.26186939,0.0002018,2]
[399946720,1766922644313,-435.78346,0.00020187,2]
[399946721,1766922644323,-151.0,0.000203,4]
[399946722,1766922644335,-151.0,0.000203,4]
[399946723,1766922644343,-150.0,0.00020467,2]
[399946724,1766922644352,-150.0,0.00020467,2]
[399946725,1766922644362,-150.0,0.00020467,2]
[399946726,1766922644373,-150.0,0.00020467,2]
[399946727,1766922644383,-150.0,0.00020467,2]
[399946728,1766922644394,-150.0,0.00020467,2]
[399946729,1766922644404,-150.0,0.00020467,2]
[399946730,1766922644415,-150.0,0.00020467,2]
[399946731,1766922644426,-29.49390106,0.00020467,2]
[399946732,1766922644462,-120.50609894,0.00020467,2]
[399946733,1766922644472,-150.0,0.00020467,2]
[399946734,1766922644483,-150.0,0.00020467,2]
[399946735,1766922644492,-158.12652114,0.00020467,2]
[399946736,1766922644504,-303.2277468,0.00020566,2]
[399946737,1766922644518,-303.2277468,0.00020566,2]
[399946738,1766922644530,-599.3589821,0.00020566,2]
[399946739,1766922644539,-303.2277468,0.00020566,2]
[399946740,1766922644549,-599.3589821,0.00020566,2]
[399946741,1766922644559,-1135.04,0.0002059,10]
[399946742,1766922644569,-945.86,0.0002059,10]
[399946743,1766922644581,-610.45640642,0.00020599,2]
[399946744,1766922644592,-201.70946848,0.00020599,2]
[399946745,1766922644604,-500.0,0.00020599,2]
[399946746,1766922644616,-500.0,0.00020599,2]
[399946747,1766922644628,-500.0,0.00020599,2]
[399946748,1766922644639,-500.0,0.00020599,2]
[399946749,1766922644653,-500.0,0.00020599,2]
[399946750,1766922644664,-500.0,0.00020599,2]
[399946751,1766922644676,-500.0,0.00020599,2]
[399946752,1766922644686,-500.0,0.00020599,2]
[399946753,1766922644696,-500.0,0.00020599,2]
[399946754,1766922644706,-500.0,0.00020599,2]
[399946755,1766922644717,-500.0,0.00020599,2]
[399946756,1766922644729,-500.0,0.00020599,2]
[399946757,1766922644741,-500.0,0.00020599,2]
[399946758,1766922644752,-5996.85025293,0.000206,2]
[399946759,1766922644766,-4082.51093878,0.000206,2]
[399946760,1766922645047,-272.83182917,0.000206,2]
[399946779,1766922645990,-1411.95357189,0.000206,2]
[399946780,1766922646100,-1437.1938843,0.000206,2]
[399946787,1766923190617,520.0,0.00013172,2]
[399946788,1766923738359,1208.33,0.00030134,120]
[399946789,1766923738914,1208.33,0.00030134,120]
[399946790,1766923739148,1208.33,0.00030134,120]
[399946791,1766923739379,1208.33,0.00030134,120]
[399946792,1766923739604,1208.33,0.00030134,120]
[399946793,1766923739934,1208.33,0.00030134,120]
[399946794,1766923740178,1208.33,0.00030134,120]
[399946795,1766923740400,1208.33,0.00030134,120]
[399946796,1766923740641,1208.33,0.00030134,120]
[399946797,1766923740869,1208.33,0.00030134,120]
[399946798,1766923741112,1208.33,0.00030134,120]
[399946799,1766923741365,1208.33,0.00030134,120]
[399946800,1766923741597,1208.33,0.00030134,120]
[399946801,1766923741831,1208.33,0.00030134,120]
[399946802,1766923742080,1208.33,0.00030134,120]
[399946803,1766923742323,1208.33,0.00030134,120]
[399946804,1766923742670,1208.33,0.00030134,120]
[399946805,1766923742903,1208.33,0.00030134,120]
[399946806,1766923743488,1208.33,0.00030134,120]
[399946807,1766923743737,1208.33,0.00030134,120]
[399946808,1766923743983,1208.33,0.00030134,120]
[399946809,1766923744230,1208.33,0.00030134,120]
[399946810,1766923744473,1208.33,0.00030134,120]
[399946811,1766923744744,1208.41,0.00030134,120]
[399946812,1766923766120,-5000.0,0.00014517,2]
[399946813,1766923766143,-150.0,0.00014812,2]
[399946814,1766923766163,-634.0,0.00014887,2]
[399946815,1766923766183,-298.14893812,0.00015189,2]
[399946828,1766923836738,-609.9380411,0.0001451,2]
[399946829,1766923836750,-5000.0,0.00015037,2]
[399946830,1766923836760,-636.0,0.00015037,2]
[399946831,1766923836770,-69.34916362,0.00015189,2]
[399946832,1766923836780,-500.0,0.00015394,2]
[399946833,1766923836789,-500.0,0.00015394,2]
[399946834,1766923836798,-500.0,0.00015394,2]
[399946835,1766923836807,-500.0,0.00015394,2]
[399946836,1766923836816,-500.0,0.00015394,2]
[399946837,1766923836825,-500.0,0.00015394,2]
[399946838,1766923836834,-500.0,0.00015394,2]
[399946839,1766923836843,-500.0,0.00015394,2]
[399946840,1766923836853,-500.0,0.00015394,2]
[399946841,1766923836862,-327.3049106,0.00015394,2]
[399946842,1766923836872,-500.0,0.00015394,2]
[399946843,1766923836881,-500.0,0.00015394,2]
[399946844,1766923836890,-500.0,0.00015394,2]
[399946845,1766923836899,-500.0,0.00015394,2]
[399946846,1766923836908,-500.0,0.00015394,2]
[399946847,1766923836917,-254.24278503,0.00015394,2]
[399946848,1766923836927,-500.0,0.00015394,2]
[399946849,1766923836936,-500.0,0.00015394,2]
[399946850,1766923836946,-500.0,0.00015394,2]
[399946851,1766923836957,-500.0,0.00015394,2]
[399946852,1766923836967,-500.0,0.00015394,2]
[399946853,1766923836976,-12.31833878,0.00015394,2]
[399946854,1766923836987,-487.68166122,0.00015394,2]
[399946855,1766923836996,-25.31642816,0.00015394,2]
[399946856,1766923837008,-474.68357184,0.00015394,2]
[399946857,1766923837019,-500.0,0.00015394,2]
[399946858,1766923837028,-379.63989768,0.00015394,2]
[399946860,1766923837943,-120.36010232,0.00015394,2]
[399946861,1766923837954,-500.0,0.00015394,2]
[399946862,1766923837963,-500.0,0.00015394,2]
[399946863,1766923837973,-616.66059224,0.00015394,2]
[399946864,1766923837984,-590.43931664,0.00015394,2]
[399946865,1766923837994,-208.04864006,0.00015394,2]
[399946866,1766923838004,-559.23157006,0.00015394,2]
[399946867,1766923838013,-716.48561398,0.00015394,2]
[399946868,1766923838023,-716.48561398,0.00015394,2]
[399946870,1766923838032,-85.13765213,0.00015394,2]
[399946872,1766923838044,-631.34796185,0.00015394,2]
[399946873,1766923838053,-118.65203815,0.00015394,2]
[399946874,1766923838065,-597.83357583,0.00015394,2]
[399946876,1766923838074,-716.48561398,0.00015394,2]
[399946877,1766923838083,-582.62231947,0.00015394,2]
[399946914,1766923840251,-133.86329451,0.00015394,2]
[399946916,1766923840261,-716.48561398,0.00015394,2]
[399946918,1766923840270,-716.48561398,0.00015394,2]
[399946920,1766923840283,-716.48561398,0.00015394,2]
[399946922,1766923840292,-716.48561398,0.00015394,2]
[399946924,1766923840302,-716.48561398,0.00015394,2]
[399946926,1766923840311,-716.48561398,0.00015394,2]
[399946928,1766923840321,-716.48561398,0.00015394,2]
[399946930,1766923840334,-716.48561398,0.00015394,2]
[399946932,1766923840343,-716.48561398,0.00015394,2]
[399946934,1766923840353,-716.48561398,0.00015394,2]
[399946937,1766923840363,-716.48561398,0.00015394,2]
[399946940,1766923840374,-716.48561398,0.00015394,2]
[399946942,1766923840383,-300.0,0.00015394,2]
[399946944,1766923840393,-1109.0,0.00015394,2]
[399946945,1766923840403,-1200.0,0.00015395,2]
[399946948,1766923840413,-2412.02793957,0.00015396,2]
[399946949,1766923840423,-151.0,0.00015397,2]
[399946951,1766923840433,-500.0,0.00015399,2]
[399946954,1766923840443,-166.866887,0.00015399,2]
[399946956,1766923840453,-500.0,0.00015989,2]
[399946958,1766923840463,-177.0,0.00016812,2]
[399946960,1766923840473,-500.0,0.0001683,2]
[399946962,1766923840483,-300.0,0.00016841,2]
[399946964,1766923840492,-500.0,0.00017672,2]
[399946965,1766923840501,-500.0,0.00018555,2]
[399946968,1766923840510,-204.0,0.00018812,2]
[399946970,1766923840521,-1041.66666667,0.00018959,2]
[399946972,1766923840530,-2466.641229,0.00019178,2]
[399946974,1766923840539,-151.0,0.00019178,2]
[399946976,1766923840549,-151.0,0.00019178,2]
[399946978,1766923840558,-151.0,0.00019178,2]
[399946980,1766923840567,-151.0,0.00019178,2]
[399946982,1766923840576,-151.0,0.00019178,2]
[399946984,1766923840585,-151.0,0.00019178,2]
[399946986,1766923840593,-307.83811659,0.00019295,2]
[399946988,1766923840602,-5000.0,0.00019395,2]
[399946990,1766923840611,-151.0,0.00019395,2]
[399946992,1766923840620,-151.0,0.00019395,2]
[399946994,1766923840629,-500.0,0.00019483,2]
[399946995,1766923840638,-600.0,0.00019554,2]
[399946997,1766923840648,-303.2277468,0.00019744,2]
[399946999,1766923840658,-303.2277468,0.00019744,2]
[399947001,1766923840666,-303.2277468,0.00019778,2]
[399947003,1766923840675,-303.2277468,0.00019878,2]
[399947005,1766923840685,-173.396509,0.00019878,2]
[399947007,1766923840693,-303.2277468,0.00019978,2]
[399947009,1766923840702,-599.3589821,0.00019978,2]
[399947012,1766923840713,-150.0,0.00020193,2]
[399947014,1766923840723,-150.0,0.00020193,2]
[399947016,1766923840732,-150.0,0.00020193,2]
[399947018,1766923840742,-150.0,0.00020193,2]
[399947020,1766923840751,-150.0,0.00020193,2]
[399947022,1766923840760,-150.0,0.00020193,2]
[399947024,1766923840769,-150.0,0.0002033,2]
[399947026,1766923840778,-150.0,0.0002033,2]
[399947028,1766923840786,-200.0,0.0002033,2]
[399947030,1766923840795,-150.0,0.0002033,2]